[Event "Slovakian-ch Youth 2022"]
[Site "Lubovna"]
[Date "2022.05.25"]
[Round "6.12"]
[White "Mederly, Jan"]
[Black "Babjak, Samuel"]
[Result "0-1"]
[ECO "D00"]
[WhiteElo "1446"]
[BlackElo "1577"]
[Annotator "NA COMBH"]
[PlyCount "49"]
[EventDate "2022.05.22"]
[EventCountry "SVK"]
[SourceTitle "playchess.com"]
[Source "ChessBase"]
[SourceQuality "1"]
[TimeControl "40/5400+30:1800+30"]

1. d4 {[%emt 0:04:08]} Nf6 {[%emt 0:00:09]} 2. Nc3 {[%emt 0:00:08]} d5 {[%emt 0:00:19]} 3. Bf4 {[%emt 0:00:12]} a6 {[%emt 0:00:13]} 4. e3 {[%emt 0:00:09]} e6 {[%emt 0:00:12]} 5. Bd3 {[%emt 0:01:52]} Bd6 {[%emt 0:00:20]} 6. Qf3 {[%emt 0:00:12]} c5 {[%emt 0:03:23]} 7. Bxd6 {[%emt 0:01:35]} Qxd6 {[%emt 0:00:05]} 8. g4 {[%emt 0:00:07]} Nc6 {[%emt 0:03:57]} 9. dxc5 {[%emt 0:02:51]} Qxc5 {[%emt 0:00:32]} 10. g5 {[%emt 0:00:30]} Nd7 {[%emt 0:00:38]} 11. h4 {[%emt 0:03:14]} Nde5 {[%emt 0:05:15]} 12. Qe2 {[%emt 0:00:38]} b5 {[%emt 0:03:19]} 13. Nf3 {[%emt 0:10:15]} Bb7 {[%emt 0:05:44]} 14. Rh3 {[%emt 0:15:30]} Qb4 {[%emt 0:06:00]} 15. O-O-O {[%emt 0:06:10]} Nc4 {[%emt 0:06:40]} 16. Bxc4 {[%emt 0:01:07]} bxc4 {[%emt 0:00:17]} 17. e4 {[%emt 0:01:09]} dxe4 {[%emt 0:05:16]} 18. Nxe4 {[%emt 0:00:29]} O-O {[%emt 0:01:51]} 19. Nf6+ {[%emt 0:08:55]} gxf6 {[%emt 0:02:52]} 20. gxf6 {[%emt 0:00:14]} c3 {[%emt 0:00:34]} 21. bxc3 {[%emt 0:09:23]} Qxc3 {[%emt 0:00:17]} 22. Ng5 {[%emt 0:04:18]} Qa1+ {[%emt 0:02:01]} 23. Kd2 {[%emt 0:00:30]} Rad8+ {[%emt 0:01:47]} 24. Rd3 {[%emt 0:00:32]} Rxd3+ {[%emt 0:00:13]} 25. Qxd3 {[%emt 0:00:11]} 0-1

[Event "Slovakian-ch Youth 2022"]
[Site "Lubovna"]
[Date "2022.05.25"]
[Round "6.13"]
[White "Chovanec, Adrian"]
[Black "Rybiansky, Jergus"]
[Result "1/2-1/2"]
[ECO "B30"]
[WhiteElo "1498"]
[BlackElo "1379"]
[Annotator "NA COMBH"]
[PlyCount "70"]
[EventDate "2022.05.22"]
[EventCountry "SVK"]
[SourceTitle "playchess.com"]
[Source "ChessBase"]
[SourceQuality "1"]
[TimeControl "40/5400+30:1800+30"]

1. e4 {[%emt 0:00:04]} c5 {[%emt 0:00:25]} 2. Nc3 {[%emt 0:00:19]} Nc6 {[%emt 0:00:24]} 3. Nf3 {[%emt 0:00:27]} e6 {[%emt 0:01:52]} 4. Bc4 {[%emt 0:03:05]} Nf6 {[%emt 0:03:10]} 5. O-O {[%emt 0:02:21]} Be7 {[%emt 0:05:23]} 6. h3 {[%emt 0:02:50]} Nxe4 {[%emt 0:08:15]} 7. Nxe4 {[%emt 0:01:27]} d5 {[%emt 0:00:06]} 8. Nxc5 {[%emt 0:05:39]} Bxc5 {[%emt 0:01:30]} 9. Bb5 {[%emt 0:01:25]} Bd7 {[%emt 0:01:41]} 10. d4 {[%emt 0:02:04]} Bd6 {[%emt 0:02:01]} 11. c3 {[%emt 0:01:19]} h6 {[%emt 0:06:57]} 12. Re1 {[%emt 0:03:16]} O-O {[%emt 0:06:49]} 13. Qd3 {[%emt 0:11:47]} a6 {[%emt 0:03:10]} 14. Ba4 {[%emt 0:02:13]} b5 {[%emt 0:04:45]} 15. Bc2 {[%emt 0:00:20]} f5 {[%emt 0:08:33]} 16. Ne5 {[%emt 0:01:28]} Rf6 {[%emt 0:08:00]} 17. Bf4 {[%emt 0:04:07]} Bxe5 {[%emt 0:04:25]} 18. Bxe5 {[%emt 0:02:27]} Rg6 {[%emt 0:01:02]} 19. Bf4 {[%emt 0:02:26]} Qh4 {[%emt 0:01:57]} 20. Bg3 {[%emt 0:03:14]} Qg5 {[%emt 0:01:59]} 21. Qe3 {[%emt 0:01:57]} Rf8 {[%emt 0:02:28]} 22. Qxg5 {[%emt 0:03:59]} hxg5 {[%emt 0:01:08]} 23. f3 {[%emt 0:02:12]} Rgf6 {[%emt 0:02:21]} 24. Bd6 {[%emt 0:01:01]} Rc8 {[%emt 0:01:30]} 25. Be5 {[%emt 0:02:53]} Rf7 {[%emt 0:02:31]} 26. Re2 {[%emt 0:02:45]} b4 {[%emt 0:02:04]} 27. Bg3 {[%emt 0:04:16]} bxc3 {[%emt 0:01:12]} 28. bxc3 {[%emt 0:00:22]} Na5 {[%emt 0:02:39]} 29. Be1 {[%emt 0:00:59]} Rb8 {[%emt 0:01:32]} 30. Rb1 {[%emt 0:00:53]} Rff8 {[%emt 0:00:32]} 31. Bd3 {[%emt 0:00:55]} Rxb1 {[%emt 0:00:52]} 32. Bxb1 {[%emt 0:00:08]} Rb8 {[%emt 0:00:27]} 33. Bd3 {[%emt 0:01:40]} Rb6 {[%emt 0:00:45]} 34. Rc2 {[%emt 0:03:30]} Kf7 {[%emt 0:01:51]} 35. Kf2 {[%emt 0:00:46]} Nc4 {[%emt 0:04:09]} 1/2-1/2

[Event "Slovakian-ch Youth 2022"]
[Site "Lubovna"]
[Date "2022.05.25"]
[Round "6.13"]
[White "Otahal, Kristian"]
[Black "Kudela, Oliver"]
[Result "0-1"]
[ECO "D02"]
[WhiteElo "1000"]
[BlackElo "1344"]
[Annotator "NA RC COMBH"]
[PlyCount "98"]
[EventDate "2022.05.22"]
[EventCountry "SVK"]
[SourceTitle "playchess.com"]
[Source "ChessBase"]
[SourceQuality "1"]
[TimeControl "40/5400+30:1800+30"]

1. d4 {[%emt 0:00:01]} d5 {[%emt 0:00:06]} 2. Nf3 {[%emt 0:00:08]} Nf6 {[%emt 0:00:50]} 3. Bf4 {[%emt 0:00:08]} Bf5 {[%emt 0:00:24]} 4. e3 {[%emt 0:00:08]} e6 {[%emt 0:00:32]} 5. Be2 {[%emt 0:00:16]} Nbd7 {[%emt 0:01:36]} 6. c4 {[%emt 0:00:27]} c6 {[%emt 0:02:20]} 7. O-O {[%emt 0:01:10]} dxc4 {[%emt 0:01:16]} 8. Bxc4 {[%emt 0:02:05]} Nb6 {[%emt 0:01:07]} 9. b3 {[%emt 0:01:53]} Nbd5 {[%emt 0:01:09]} 10. Bxd5 {[%emt 0:02:45]} cxd5 {[%emt 0:01:21]} 11. Nbd2 {[%emt 0:01:30]} Nh5 {[%emt 0:01:36]} 12. Bg3 {[%emt 0:03:52]} Bd6 {[%emt 0:03:02]} 13. Bxd6 {[%emt 0:02:59]} Qxd6 {[%emt 0:00:42]} 14. Ne5 {[%emt 0:02:02]} f6 {[%emt 0:01:03]} 15. Nf7 {[%emt 0:07:23]} Kxf7 {[%emt 0:01:45]} 16. Qxh5+ {[%emt 0:00:21]} Bg6 {[%emt 0:00:44]} 17. Qe2 {[%emt 0:01:41]} h5 {[%emt 0:01:26]} 18. g3 {[%emt 0:05:20]} Rh6 {[%emt 0:01:26]} 19. Rac1 {[%emt 0:03:31]} Rah8 {[%emt 0:01:04]} 20. h4 {[%emt 0:01:01]} Bf5 {[%emt 0:01:03]} 21. Rfd1 {[%emt 0:01:08]} Rg6 {[%emt 0:01:56]} 22. e4 {[%emt 0:02:41]} Bg4 {[%emt 0:03:41]} 23. Qf1 {[%emt 0:03:12]} Bxd1 {[%emt 0:02:53]} 24. Rxd1 {[%emt 0:00:11]} Rc8 {[%emt 0:03:14]} 25. exd5 {[%emt 0:01:12]} Qxd5 {[%emt 0:01:37]} 26. Qd3 {[%emt 0:02:37]} Rg4 {[%emt 0:01:22]} 27. Nf3 {[%emt 0:00:34]} Rd8 {[%emt 0:03:52]} 28. Rc1 {[%emt 0:01:44]} Rd7 {[%emt 0:02:15]} 29. Rc5 {[%emt 0:00:57]} Qe4 {[%emt 0:02:06]} 30. Qxe4 {[%emt 0:01:41]} Rxe4 {[%emt 0:00:15]} 31. Kg2 {[%emt 0:00:34]} g6 {[%emt 0:01:45]} 32. a4 {[%emt 0:01:56]} Ke7 {[%emt 0:01:34]} 33. b4 {[%emt 0:01:54]} Kd8 {[%emt 0:01:29]} 34. b5 {[%emt 0:01:19]} Rc7 {[%emt 0:00:21]} 35. Nd2 {[%emt 0:01:36]} Rxd4 {[%emt 0:01:45]} 36. Nb3 {[%emt 0:00:52]} Rb4 {[%emt 0:01:11]} 37. Rxc7 {[%emt 0:00:33]} Kxc7 {[%emt 0:00:15]} 38. Nc5 {[%emt 0:00:14]} e5 {[%emt 0:02:11]} 39. f3 {[%emt 0:01:41]} Rc4 {[%emt 0:00:56]} 40. Nd3 {[%emt 0:01:16]} Rxa4 {[%emt 0:00:54]} 41. f4 {[%emt 0:30:57]} exf4 {[%emt 0:31:37]} 42. Nxf4 {[%emt 0:00:09]} Rxf4 {[%emt 0:00:23]} 43. gxf4 {[%emt 0:00:16]} a6 {[%emt 0:00:20]} 44. bxa6 {[%emt 0:00:32]} bxa6 {[%emt 0:00:15]} 45. Kf2 {[%emt 0:00:47]} Kd6 {[%emt 0:00:35]} 46. Ke2 {[%emt 0:01:03]} f5 {[%emt 0:00:49]} 47. Kd2 {[%emt 0:00:15]} Kd5 {[%emt 0:00:13]} 48. Kd3 {[%emt 0:00:16]} a5 {[%emt 0:00:11]} 49. Kc2 {[%emt 0:00:06]} Ke4 {[%emt 0:00:14]} 0-1

[Event "Slovakian-ch Youth 2022"]
[Site "Lubovna"]
[Date "2022.05.25"]
[Round "6.14"]
[White "Svorad Tomas"]
[Black "Marcin, Richard"]
[Result "1-0"]
[ECO "C42"]
[WhiteElo "1405"]
[BlackElo "1325"]
[Annotator "NA COMBH"]
[PlyCount "60"]
[EventDate "2022.05.22"]
[EventCountry "SVK"]
[SourceTitle "playchess.com"]
[Source "ChessBase"]
[SourceQuality "1"]
[TimeControl "40/5400+30:1800+30"]

1. e4 {[%emt 0:01:36]} e5 {[%emt 0:00:09]} 2. Nf3 {[%emt 0:00:24]} Nf6 {[%emt 0:00:32]} 3. Nxe5 {[%emt 0:00:59]} Qe7 {[%emt 0:00:16]} 4. Nf3 {[%emt 0:04:04]} Nxe4 {[%emt 0:00:38]} 5. Be2 {[%emt 0:01:35]} d5 {[%emt 0:00:49]} 6. O-O {[%emt 0:01:38]} g6 {[%emt 0:00:14]} 7. d3 {[%emt 0:02:51]} Nf6 {[%emt 0:00:22]} 8. Bg5 {[%emt 0:04:10]} Bg7 {[%emt 0:00:10]} 9. Nc3 {[%emt 0:03:33]} c6 {[%emt 0:01:42]} 10. Re1 {[%emt 0:01:12]} O-O {[%emt 0:00:25]} 11. Qd2 {[%emt 0:00:40]} Be6 {[%emt 0:01:22]} 12. Bh6 {[%emt 0:03:49]} Nbd7 {[%emt 0:02:03]} 13. Bxg7 {[%emt 0:00:20]} Kxg7 {[%emt 0:00:15]} 14. d4 {[%emt 0:00:15]} Rad8 {[%emt 0:01:58]} 15. Bd3 {[%emt 0:06:11]} Qb4 {[%emt 0:00:44]} 16. Ng5 {[%emt 0:07:46]} Rfe8 {[%emt 0:01:37]} 17. Nxe6+ {[%emt 0:05:39]} fxe6 {[%emt 0:00:37]} 18. Be2 {[%emt 0:01:53]} c5 {[%emt 0:00:21]} 19. dxc5 {[%emt 0:01:37]} d4 {[%emt 0:00:29]} 20. Ne4 {[%emt 0:02:32]} Qxb2 {[%emt 0:00:51]} 21. Nxf6 {[%emt 0:01:14]} Nxf6 {[%emt 0:00:23]} 22. Bc4 {[%emt 0:01:23]} e5 {[%emt 0:01:13]} 23. Reb1 {[%emt 0:01:20]} Ne4 {[%emt 0:04:34]} 24. Qe2 {[%emt 0:02:00]} Qc3 {[%emt 0:01:54]} 25. Bb5 {[%emt 0:00:40]} Nd2 {[%emt 0:01:38]} 26. Bxe8 {[%emt 0:00:34]} Nxb1 {[%emt 0:00:15]} 27. Qxe5+ {[%emt 0:00:12]} Kh6 {[%emt 0:00:37]} 28. Rxb1 {[%emt 0:01:12]} Qxc2 {[%emt 0:00:31]} 29. Re1 {[%emt 0:01:22]} d3 {[%emt 0:00:41]} 30. Qf4+ {[%emt 0:05:41]} Kh5 {[%emt 0:02:27]} 1-0

[Event "Slovakian-ch Youth 2022"]
[Site "Lubovna"]
[Date "2022.05.25"]
[Round "6.14"]
[White "Horvath, Simon"]
[Black "Krivosik, Matus"]
[Result "0-1"]
[ECO "B15"]
[WhiteElo "1343"]
[BlackElo "1224"]
[Annotator "NA RC COMBH"]
[PlyCount "94"]
[EventDate "2022.05.22"]
[EventCountry "SVK"]
[SourceTitle "playchess.com"]
[Source "ChessBase"]
[SourceQuality "1"]
[TimeControl "40/5400+30:1800+30"]

1. e4 {[%emt 0:02:57]} c6 {[%emt 0:00:12]} 2. d4 {[%emt 0:00:14]} d5 {[%emt 0:00:12]} 3. Nc3 {[%emt 0:00:47]} dxe4 {[%emt 0:00:09]} 4. Nxe4 {[%emt 0:00:14]} Nf6 {[%emt 0:00:18]} 5. Nxf6+ {[%emt 0:00:43]} exf6 {[%emt 0:00:03]} 6. Nf3 {[%emt 0:00:39]} Bg4 {[%emt 0:00:21]} 7. h3 {[%emt 0:01:35]} Bxf3 {[%emt 0:00:12]} 8. Qxf3 {[%emt 0:01:02]} Qxd4 {[%emt 0:00:40]} 9. Qe3+ {[%emt 0:04:11]} Qxe3+ {[%emt 0:02:28]} 10. Bxe3 {[%emt 0:00:36]} Be7 {[%emt 0:02:27]} 11. Be2 {[%emt 0:02:37]} O-O {[%emt 0:00:44]} 12. O-O {[%emt 0:00:12]} Nd7 {[%emt 0:02:10]} 13. Rfd1 {[%emt 0:02:38]} Rad8 {[%emt 0:01:35]} 14. Rd2 {[%emt 0:05:46]} Nb6 {[%emt 0:06:57]} 15. Rxd8 {[%emt 0:00:58]} Rxd8 {[%emt 0:02:08]} 16. Rd1 {[%emt 0:02:21]} Rxd1+ {[%emt 0:02:59]} 17. Bxd1 {[%emt 0:00:26]} Nc4 {[%emt 0:00:36]} 18. b3 {[%emt 0:02:11]} Nxe3 {[%emt 0:02:02]} 19. fxe3 {[%emt 0:00:14]} Bc5 {[%emt 0:00:21]} 20. Kf2 {[%emt 0:00:44]} Kf8 {[%emt 0:01:24]} 21. Kf3 {[%emt 0:00:29]} Ke7 {[%emt 0:01:13]} 22. e4 {[%emt 0:00:28]} Ke6 {[%emt 0:01:49]} 23. Kf4 {[%emt 0:02:15]} Bd6+ {[%emt 0:00:53]} 24. Ke3 {[%emt 0:01:02]} b6 {[%emt 0:03:02]} 25. Bg4+ {[%emt 0:01:59]} Ke5 {[%emt 0:00:05]} 26. Bd7 {[%emt 0:01:41]} c5 {[%emt 0:01:51]} 27. c4 {[%emt 0:01:11]} g6 {[%emt 0:01:03]} 28. Bg4 {[%emt 0:00:50]} Bf8 {[%emt 0:00:55]} 29. Bf3 {[%emt 0:02:13]} h5 {[%emt 0:01:42]} 30. g4 {[%emt 0:00:44]} Bh6+ {[%emt 0:00:51]} 31. Kd3 {[%emt 0:00:35]} Kf4 {[%emt 0:01:21]} 32. Be2 {[%emt 0:01:42]} h4 {[%emt 0:03:19]} 33. a3 {[%emt 0:07:50]} f5 {[%emt 0:03:40]} 34. exf5 {[%emt 0:00:30]} gxf5 {[%emt 0:00:19]} 35. gxf5 {[%emt 0:00:15]} Kxf5 {[%emt 0:00:39]} 36. b4 {[%emt 0:02:57]} Kf4 {[%emt 0:02:43]} 37. bxc5 {[%emt 0:01:03]} bxc5 {[%emt 0:00:14]} 38. a4 {[%emt 0:00:10]} Kg3 {[%emt 0:03:39]} 39. Bf1 {[%emt 0:00:46]} f5 {[%emt 0:03:13]} 40. Ke2 {[%emt 0:02:57]} f4 {[%emt 0:01:26]} 41. Ke1 {[%emt 0:31:04]} f3 {[%emt 0:30:51]} 42. Be2 {[%emt 0:01:35]} fxe2 {[%emt 0:00:43]} 43. Kxe2 {[%emt 0:00:07]} Kxh3 {[%emt 0:00:11]} 44. Kf2 {[%emt 0:00:21]} Be3+ {[%emt 0:00:31]} 45. Kf3 {[%emt 0:01:26]} Kh2 {[%emt 0:00:21]} 46. Kg4 {[%emt 0:00:55]} h3 {[%emt 0:00:03]} 47. Kh4 {[%emt 0:00:36]} Kg2 {[%emt 0:00:20]} 0-1

[Event "Slovakian-ch Youth 2022"]
[Site "Lubovna"]
[Date "2022.05.25"]
[Round "6.15"]
[White "Sandor, Samuel"]
[Black "Skreko, Igor"]
[Result "0-1"]
[ECO "B90"]
[WhiteElo "2054"]
[BlackElo "2065"]
[Annotator "TA"]
[PlyCount "96"]
[EventDate "2022.05.22"]
[EventCountry "SVK"]
[SourceTitle "playchess.com"]
[Source "ChessBase"]
[SourceQuality "1"]
[TimeControl "40/5400+30:1800+30"]

{[%evp 12,96,2,12,11,0,0,0,0,0,0,0,43,54,86,87,88,27,38,17,30,27,107,-43,95,100,134,42,26,-18,-30,-72,-70,-158,-147,-127,-61,-80,0,-1,0,0,0,0,0,-115,-115,-115,-115,-108,-108,-170,-171,-189,-189,-289,-270,-272,-289,-242,-283,-256,-207,-670,-283,-420,-370,-477,-499,-666,-625,-5222,-5222,-5022,-5604,-29977,-29978,-29984,-29985,-29985,-29986,-29986,-29987,-29987,-29988,-29993,-29993]} 1. e4 {[%emt 0:00:03]} c5 {[%emt 0:00:05]} 2. Nf3 {[%emt 0:00:04][%cal Bg1f3,Bf3d4,Bd4e2,Be2c3,Bc3d5][%mdl 32]} d6 {[%emt 0:00:04]} 3. d4 {[%emt 0:00:04]} cxd4 {[%emt 0:00:04]} 4. Nxd4 {[%emt 0:00:04]} Nf6 {[%emt 0:00:07]} 5. Nc3 {[%emt 0:00:04]} a6 {[%emt 0:00:06]} 6. h3 {[%emt 0:00:03]} e5 {[%emt 0:00:08] 6...e5 is better than 6...e6.} 7. Nde2 {[%emt 0:00:05]} h5 {[%emt 0:00:07] Inhibits g4. B90: Sicilian Najdorf: Unusual White 6th moves, 6 Be3 Ng4 and 6 Be3 e5.} 8. Nd5 {[%emt 0:00:13]} Nxe4 {[%emt 0:04:16]} 9. Be3 {[%emt 0:00:06] [#] Bb6 is the strong threat.} Nd7 {[%emt 0:00:32] Inhibits Bb6. The position is equal.} 10. g3 {[%emt 0:00:42]} Nef6 {[%emt 0:10:26]} 11. Nec3 {[%emt 0:02:12]} Nxd5 {[%emt 0:05:42]} 12. Nxd5 {[%emt 0:03:15] [#]} b6 $146 {[%emt 0:03:45]} ({Predecessor:} 12... Nf6 13. Bb6 {1-0 (15) Przybylski,W (2321)-Stukan,M (2325) Chess.com INT 2020}) 13. Bg2 {[%emt 0:03:12][%cal Oe3g5][%mdl 1024] White has strong compensation.} Bb7 {[%emt 0:05:54]} 14. O-O {[%emt 0:03:45]} (14. f4 $16) 14... Rb8 {[%emt 0:05:53]} 15. f4 {[%emt 0:08:56]} Be7 {[%emt 0:05:13]} 16. Qe2 {[%emt 0:14:22]} h4 {[%emt 0:13:33]} (16... Bxd5 $11 17. Bxd5 O-O) 17. Rad1 {[%emt 0:15:31]} (17. g4 $16) 17... Bxd5 {[%emt 0:06:49]} (17... hxg3 $15 {keeps the upper hand.} 18. fxe5 Nxe5) 18. Bxd5 $16 {[%emt 0:03:43] Black must now prevent fxe5.} O-O {[%emt 0:00:26]} 19. Qxa6 {[%emt 0:05:34]} (19. g4 $16) 19... hxg3 $14 {[%emt 0:01:51]} 20. Rf3 {[%emt 0:01:21]} Bh4 {[%emt 0:01:16]} 21. Qd3 {[%emt 0:02:49]} Nf6 {[%emt 0:06:59]} 22. Qf5 {[%emt 0:18:52] [#]} (22. fxe5 $15 Nxd5 23. Qxd5 dxe5 24. Qxd8 Rfxd8 25. Rxd8+ Bxd8 26. Rxg3) 22... e4 $1 $17 {[%emt 0:05:16]} (22... Nxd5 23. Rxd5 Bf6 24. Rxg3 $15) 23. Rff1 {[%emt 0:01:01][%cal Bf3f1,Bf1e1,Be1e3][%mdl 32]} (23. Bxe4 $2 g6 24. Qb5 Nxe4 $19) 23... Kh8 {[%emt 0:02:25]} (23... Rc8 $17 24. Rd2 (24. Bxe4 $2 g6 $19) 24... Re8) 24. Bb3 {[%emt 0:02:13]} (24. Bxe4 $2 g6 25. Qb5 Nxe4 $19) 24... b5 {[%emt 0:01:19]} ({Black should try} 24... Ra8 $17 25. Bd4 Ra5 26. Bxf6 Rxf5 27. Bxd8 Rxd8) 25. Bd4 $1 $11 {[%emt 0:01:15]} Qe7 {[%emt 0:04:25]} 26. Rfe1 {[%emt 0:01:35]} Rfe8 {[%emt 0:00:48]} 27. Re3 {[%emt 0:01:11]} d5 {[%emt 0:04:55]} 28. c3 {[%emt 0:02:39]} (28. Bxf6 $11 Bxf6 29. Qh5+ Kg8 30. Bxd5) 28... Qe6 $17 {[%emt 0:02:11] White is on the road to losing.} 29. Qxe6 {[%emt 0:00:24]} fxe6 {[%emt 0:00:07]} 30. Rf1 {[%emt 0:02:46]} Ra8 {[%emt 0:01:38]} 31. Re2 {[%emt 0:02:06]} (31. Bxf6 $17 gxf6 32. f5) 31... Nh5 $19 {[%emt 0:02:16]} 32. Rd2 {[%emt 0:02:20]} Rf8 {[%emt 0:01:36]} 33. f5 {[%emt 0:01:15]} (33. Be3 $142) 33... Bg5 {[%emt 0:02:09]} ({Stronger than} 33... Rxf5 34. Rxf5 exf5 35. Be3 $17) ({Inferior is} 33... exf5 34. Bc5 $11) 34. Rdd1 {[%emt 0:01:20]} Rxf5 {[%emt 0:01:49]} ({And not} 34... exf5 35. Bxd5 Rae8 36. Bc5 $15) 35. Rxf5 {[%emt 0:00:02]} exf5 {[%emt 0:00:06]} 36. Bxd5 {[%emt 0:00:17]} Ra6 {[%emt 0:01:21]} 37. Kg2 $2 {[%emt 0:00:54]} (37. Be5) 37... Bf6 {[%emt 0:00:52]} (37... Nf4+ $142 38. Kxg3 Nxd5) 38. Bf7 {[%emt 0:00:44]} (38. Be3 $142 g6 39. Kf1) 38... g6 {[%emt 0:01:15]} 39. Be3 {[%emt 0:01:30]} Be5 {[%emt 0:01:40] aiming for ...f4.} 40. Bd4 {[%emt 0:01:25]} Bxd4 {[%emt 0:00:12]} 41. cxd4 {[%emt 0:00:43][%mdl 4096] Endgame KRB-KRN} f4 {[%emt 0:01:35][%cal Bf5f4,Bf4f3][%mdl 32] ( -> ...f3+)} 42. Bd5 {[%emt 0:10:12]} f3+ {[%emt 0:01:41]} 43. Kf1 {[%emt 0:01:00]} Nf6 {[%emt 0:00:44] Black mates.} 44. Bb7 {[%emt 0:00:38]} Rxa2 {[%emt 0:00:26]} 45. Rb1 {[%emt 0:02:10]} Ra7 {[%emt 0:01:19]} 46. Bc6 {[%emt 0:00:17]} Rh7 {[%emt 0:00:39]} 47. Kg1 {[%emt 0:01:17]} Rxh3 {[%emt 0:00:26]} 48. d5 {[%emt 0:02:30]} g2 {[%emt 0:00:38] Weighted Error Value: White=0.65/Black=0.30} 0-1

[Event "Slovakian-ch Youth 2022"]
[Site "Lubovna"]
[Date "2022.05.25"]
[Round "6.15"]
[White "Rybovic, Alex"]
[Black "Valchev, Martin V"]
[Result "1-0"]
[ECO "C00"]
[WhiteElo "1000"]
[BlackElo "1193"]
[Annotator "NA RC COMBH"]
[PlyCount "77"]
[EventDate "2022.05.22"]
[EventCountry "SVK"]
[SourceTitle "playchess.com"]
[Source "ChessBase"]
[SourceQuality "1"]
[TimeControl "40/5400+30:1800+30"]

1. e4 {[%emt 0:00:02]} e6 {[%emt 0:01:48]} 2. Nf3 {[%emt 0:00:12]} d5 {[%emt 0:00:19]} 3. d3 {[%emt 0:00:32]} dxe4 {[%emt 0:00:39]} 4. dxe4 {[%emt 0:00:11]} Qxd1+ {[%emt 0:00:07]} 5. Kxd1 {[%emt 0:00:12]} Nc6 {[%emt 0:00:25]} 6. Nc3 {[%emt 0:00:22]} e5 {[%emt 0:01:48]} 7. Nb5 {[%emt 0:00:17]} Bd6 {[%emt 0:01:26]} 8. Be3 {[%emt 0:00:56]} a6 {[%emt 0:01:34]} 9. Nxd6+ {[%emt 0:00:59]} cxd6 {[%emt 0:01:08]} 10. Bc4 {[%emt 0:00:49]} Bg4 {[%emt 0:01:31]} 11. h3 {[%emt 0:00:27]} Bxf3+ {[%emt 0:00:11]} 12. gxf3 {[%emt 0:00:28]} Nf6 {[%emt 0:04:46]} 13. Bd5 {[%emt 0:00:36]} Nxd5 {[%emt 0:05:10]} 14. exd5 {[%emt 0:00:04]} Nb4 {[%emt 0:00:27]} 15. f4 {[%emt 0:00:42]} Nxd5 {[%emt 0:00:42]} 16. fxe5 {[%emt 0:00:34]} dxe5 {[%emt 0:01:27]} 17. Bc5 {[%emt 0:00:33]} O-O-O {[%emt 0:02:50]} 18. Ke2 {[%emt 0:00:56]} Kb8 {[%emt 0:04:39]} 19. Rad1 {[%emt 0:00:27]} Nf4+ {[%emt 0:01:28]} 20. Ke3 {[%emt 0:01:10]} Rxd1 {[%emt 0:00:31]} 21. Rxd1 {[%emt 0:00:02]} Nxh3 {[%emt 0:00:12]} 22. Rd7 {[%emt 0:00:54]} Rf8 {[%emt 0:01:37]} 23. Bxf8 {[%emt 0:00:05]} Ng5 {[%emt 0:01:36]} 24. Bd6+ {[%emt 0:00:19]} Kc8 {[%emt 0:00:24]} 25. Re7 {[%emt 0:00:42]} Kd8 {[%emt 0:02:08]} 26. Rxb7 {[%emt 0:00:26]} e4 {[%emt 0:00:23]} 27. Ra7 {[%emt 0:00:27]} g6 {[%emt 0:00:49]} 28. Bf4 {[%emt 0:00:29]} f6 {[%emt 0:00:56]} 29. Bxg5 {[%emt 0:00:07]} fxg5 {[%emt 0:00:14]} 30. Kxe4 {[%emt 0:00:24]} h5 {[%emt 0:00:10]} 31. Rg7 {[%emt 0:00:44]} h4 {[%emt 0:00:22]} 32. Rxg6 {[%emt 0:00:10]} h3 {[%emt 0:00:15]} 33. Rxg5 {[%emt 0:00:08]} h2 {[%emt 0:00:10]} 34. Rh5 {[%emt 0:00:04]} h1=Q+ 35. Rxh1 a5 {[%emt 0:01:04]} 36. Rh7 {[%emt 0:00:40]} a4 {[%emt 0:00:03]} 37. f4 {[%emt 0:00:30]} a3 {[%emt 0:00:16]} 38. bxa3 {[%emt 0:00:38]} Ke8 {[%emt 0:00:06]} 39. a4 {[%emt 0:00:55]} 1-0

[Event "Slovakian-ch Youth 2022"]
[Site "Lubovna"]
[Date "2022.05.25"]
[Round "6.16"]
[White "Compel, Daniel"]
[Black "Salgovic, Simon"]
[Result "1/2-1/2"]
[ECO "C42"]
[WhiteElo "2106"]
[BlackElo "2091"]
[Annotator "TA"]
[PlyCount "50"]
[EventDate "2022.05.22"]
[EventCountry "SVK"]
[SourceTitle "playchess.com"]
[Source "ChessBase"]
[SourceQuality "1"]
[TimeControl "40/5400+30:1800+30"]

{[%evp 16,50,16,16,29,18,33,0,0,0,33,0,0,-10,25,20,26,39,58,45,44,41,37,45,48,49,42,16,20,27,26,2,12,-8,-12,-20,0]} 1. e4 {[%emt 0:00:05]} e5 {[%emt 0:00:48]} 2. Nf3 {[%emt 0:00:05]} Nf6 {[%emt 0:00:15]} 3. Nxe5 {[%emt 0:00:04]} d6 {[%emt 0:00:06]} 4. Nf3 {[%emt 0:00:06]} Nxe4 {[%emt 0:00:06]} 5. d4 {[%emt 0:00:03]} d5 {[%emt 0:00:22]} 6. Bd3 {[%emt 0:00:04]} Nc6 {[%emt 0:07:07]} 7. O-O {[%emt 0:00:53]} Be7 {[%emt 0:00:19]} 8. Nc3 {[%emt 0:00:26] 8.Nbd2 is becoming the main line.} Nxc3 {[%emt 0:11:07]} 9. bxc3 {[%emt 0:00:05]} Bg4 {[%emt 0:00:10] C42: Petroff Defence: 3 Nxe5 and unusual White 3rd moves.} 10. h3 {[%emt 0:00:03]} Bh5 {[%emt 0:00:08]} 11. Re1 {[%emt 0:00:06]} O-O {[%emt 0:02:07]} 12. Rb1 {[%emt 0:00:05]} Rb8 {[%emt 0:08:06]} 13. Bf4 {[%emt 0:02:13]} Bd6 {[%emt 0:03:44]} 14. Bxd6 {[%emt 0:02:37] [#]} Bxf3 $146 {[%emt 0:04:42]} ({Predecessor:} 14... Qxd6 15. Re3 f6 16. Qd2 Rfe8 17. Nh4 Rxe3 18. Qxe3 Re8 19. Qd2 Nd8 20. Nf5 Qd7 {½-½ (38) Topalov,V (2780)-Kramnik,V (2799) Nice 2008}) 15. Qxf3 {[%emt 0:04:26]} Qxd6 {[%emt 0:00:46]} 16. Re3 {[%emt 0:05:31]} Nd8 {[%emt 0:21:18]} 17. Qh5 {[%emt 0:02:57][%csl Gd3][%cal Rh5h7] [#]} g6 {[%emt 0:01:01]} 18. Qe5 $40 {[%emt 0:00:27][%mdl 128] White has some attack.} Qxe5 {[%emt 0:14:28]} 19. Rxe5 {[%emt 0:00:08]} ({Much worse is} 19. dxe5 Ne6 $11) 19... c6 {[%emt 0:00:11]} 20. Re7 {[%emt 0:00:25]} Kg7 {[%emt 0:02:39]} 21. f4 {[%emt 0:04:41][%cal Bf2f4,Bf4f5][%mdl 32]} Kf6 {[%emt 0:03:30] Prevents f5.} 22. Re5 {[%emt 0:00:27]} Ne6 {[%emt 0:01:42]} 23. f5 {[%emt 0:00:33]} Nc7 {[%emt 0:04:29] The position is equal.} 24. Rf1 {[%emt 0:01:33] [#] Strongly threatening fxg6+.} g5 {[%emt 0:00:33]} 25. Rfe1 {[%emt 0:03:58]} Rfe8 {[%emt 0:00:04] Weighted Error Value: White=0.11 (very precise) /Black=0.07 (flawless)} 1/2-1/2